bitfinex/quotes_BTCUSD_20251230
["timestamp","ask_amount","ask_price","bid_price","bid_amount"]
[1767084522543,0.0002,87907.0,87894.0,0.01137734]
[1767084522737,0.0002,87907.0,87893.0,0.02277747]
[1767084523536,0.0002,87907.0,87893.0,0.0114]
[1767084524157,0.0002,87907.0,87893.0,0.02277747]
[1767084524365,0.0002,87907.0,87893.0,0.0114]
[1767084525662,0.01157565,87907.0,87893.0,0.0114]
[1767084526259,0.0002,87907.0,87893.0,0.0114]
[1767084528169,0.01157565,87907.0,87893.0,0.0114]
[1767084528566,0.0002,87907.0,87893.0,0.0114]
[1767084529073,0.0002,87907.0,87892.0,0.01137759]
[1767084529938,0.0002,87907.0,87893.0,0.01137747]
[1767084530679,0.0002,87907.0,87892.0,0.01137759]
[1767084531557,0.0002,87907.0,87890.0,0.01137785]
[1767084531765,0.01157565,87907.0,87889.0,0.01137798]
[1767084532559,0.0002,87907.0,87891.0,0.01137772]
[1767084533620,0.01157565,87907.0,87890.0,0.01137785]
[1767084533771,0.01157565,87907.0,87891.0,0.01137772]
[1767084534481,0.01157565,87907.0,87890.0,0.01137785]
[1767084534689,0.0002,87907.0,87891.0,0.01137772]
[1767084534909,0.0002,87907.0,87892.0,0.01137759]
[1767084535945,0.0002,87907.0,87891.0,0.01137772]
[1767084536606,0.01157565,87907.0,87890.0,0.01137785]
[1767084536841,0.0002,87907.0,87891.0,0.01137772]
[1767084537549,0.0002,87907.0,87891.0,0.14851772]
[1767084537718,0.01157565,87907.0,87889.0,0.01137798]
[1767084537921,0.51317496,87901.0,87890.0,0.01137785]
[1767084538105,0.0002,87907.0,87891.0,0.01137772]
[1767084538313,0.51317496,87900.0,87890.0,0.01137785]
[1767084538511,0.51317496,87900.0,87887.0,0.01157824]
[1767084538713,0.51317496,87900.0,87887.0,0.0002]
[1767084539142,0.01137656,87900.0,87887.0,0.0002]
[1767084539342,0.01137669,87899.0,87887.0,0.0002]
[1767084539744,0.07965807,87902.0,87887.0,0.0002]
[1767084539745,0.0114,87902.0,87887.0,0.0002]
[1767084539950,0.51317496,87900.0,87899.0,0.000549]
[1767084540169,0.0227763,87902.0,87887.0,0.0002]
[1767084540534,0.0114,87902.0,87887.0,0.0002]
[1767084540979,0.0114,87902.0,87887.0,0.01157824]
[1767084541426,0.0227763,87902.0,87887.0,0.0002]
[1767084541612,0.01137643,87901.0,87887.0,0.0002]
[1767084541988,0.0227763,87902.0,87887.0,0.0002]
[1767084542190,0.0114,87902.0,87887.0,0.0002]
[1767084542739,0.0227763,87902.0,87887.0,0.0002]
[1767084543541,0.01137643,87901.0,87887.0,0.0002]
[1767084543969,0.0114,87902.0,87887.0,0.0002]
[1767084544172,0.0114,87902.0,87887.0,0.01157824]
[1767084544344,0.0114,87902.0,87887.0,0.0002]
[1767084544543,0.0114,87902.0,87887.0,0.01157824]
[1767084545154,0.0114,87902.0,87888.0,0.01137811]
[1767084545470,0.0114,87902.0,87887.0,0.01157824]
[1767084545471,0.0114,87906.0,87902.0,0.000549]
[1767084545798,0.0114,87906.0,87897.0,0.0227539]
[1767084545931,0.0114,87906.0,87897.0,0.03413085]
[1767084546337,0.0002,87907.0,87897.0,0.0227539]
[1767084546554,0.0114,87913.0,87896.0,0.06826248]
[1767084546770,0.0114,87913.0,87899.0,0.01137669]
[1767084546969,0.0114,87913.0,87898.0,0.01137682]
[1767084547158,0.0114,87913.0,87897.0,0.01137695]
[1767084547360,0.0114,87913.0,87899.0,0.01137669]
[1767084547558,2e-07,87909.0,87899.0,0.01137669]
[1767084548431,2e-07,87909.0,87900.0,0.01137656]
[1767084548590,2e-07,87909.0,87899.0,0.01137669]
[1767084548769,2e-07,87909.0,87900.0,0.01137656]
[1767084548971,2e-07,87909.0,87899.0,0.01137669]
[1767084549311,2e-07,87909.0,87900.0,0.01137656]
[1767084549716,2e-07,87909.0,87899.0,0.01137669]
[1767084550826,2e-07,87909.0,87896.0,0.05688541]
[1767084551796,2e-07,87909.0,87905.0,0.01819681]
[1767084552008,2e-07,87909.0,87907.0,0.13429]
[1767084552864,2e-07,87909.0,87908.0,0.19116764]
[1767084553075,0.000151,87927.0,87914.0,0.01137475]
[1767084553252,0.01066469,87926.0,87915.0,0.06824745]
[1767084553466,0.000151,87927.0,87920.0,0.01819681]
[1767084553671,0.000151,87927.0,87926.0,0.000801]
[1767084554126,0.000151,87927.0,87924.0,0.13429]
[1767084554351,0.00025846,87927.0,87924.0,0.13429]
[1767084554557,0.13577,87931.0,87920.0,0.02957078]
[1767084554728,0.13577,87931.0,87920.0,0.54230031]
[1767084554915,0.13577,87931.0,87920.0,0.53092634]
[1767084555682,0.00024127,87932.0,87929.0,0.06823667]
[1767084555798,0.00024127,87932.0,87929.0,0.01137281]
[1767084556455,2.7e-07,87932.0,87929.0,0.01137281]
[1767084556672,2.7e-07,87932.0,87930.0,0.05686341]
[1767084557034,0.0114,87943.0,87935.0,0.000241]
[1767084560000,9.8e-05,87945.0,87936.0,0.02956871]
[1767084560200,9.8e-05,87945.0,87936.0,0.01819681]
[1767084561172,0.01146874,87945.0,87935.0,0.000241]
[1767084561307,9.8e-05,87945.0,87935.0,0.000241]
[1767084562161,0.52419827,87945.0,87935.0,0.000241]
[1767084562581,0.01137087,87944.0,87935.0,0.000241]
[1767084562826,0.011371,87943.0,87935.0,0.000241]
[1767084562963,0.01137087,87944.0,87933.0,0.13429]
[1767084563169,9.8e-05,87945.0,87933.0,0.13429]
[1767084563370,0.51272953,87943.0,87933.0,0.13429]
[1767084563794,9.8e-05,87945.0,87933.0,0.13429]
[1767084564222,9.8e-05,87945.0,87933.0,0.14566229]
[1767084564791,9.8e-05,87945.0,87933.0,0.13429]
[1767084565047,0.51272953,87943.0,87933.0,0.13429]
[1767084565344,9.8e-05,87945.0,87933.0,0.13429]
[1767084565487,0.51272953,87943.0,87933.0,0.13429]
[1767084565898,9.8e-05,87945.0,87933.0,0.13429]
[1767084566556,9.8e-05,87945.0,87937.0,0.13429]
[1767084566772,0.05700444,87954.0,87938.0,0.14569]
[1767084566773,0.51272953,87950.0,87938.0,0.14569]
[1767084567607,0.51272953,87950.0,87940.0,0.13429]
[1767084568966,0.01136983,87952.0,87940.0,0.13429]
[1767084569206,0.0001565,87954.0,87940.0,0.14566138]
[1767084569415,0.00049372,87951.0,87943.0,0.011371]
[1767084569594,0.00049372,87951.0,87942.0,0.01137113]
[1767084570001,0.00049372,87951.0,87941.0,0.01137126]
[1767084570156,0.00049372,87951.0,87942.0,0.01137113]
[1767084570559,0.00049372,87951.0,87940.0,0.13429]
[1767084570767,0.51272953,87950.0,87940.0,0.13429]
[1767084570966,0.00049372,87951.0,87940.0,0.13429]
[1767084571168,0.51272953,87950.0,87940.0,0.13429]
[1767084571699,0.51272953,87950.0,87940.0,0.133894]
[1767084571910,0.51272953,87950.0,87941.0,0.0114]
[1767084572838,0.51322325,87951.0,87941.0,0.0114]
[1767084573593,0.01137022,87949.0,87934.0,0.01819681]
[1767084573775,0.01137022,87949.0,87930.0,0.52410221]
[1767084573776,0.01137022,87949.0,87935.0,0.02959681]
[1767084573976,0.52409962,87950.0,87935.0,0.02959681]
[1767084574179,0.01137022,87949.0,87935.0,0.02959681]
[1767084574810,0.52409962,87950.0,87935.0,0.02959681]
[1767084575014,0.01137087,87944.0,87936.0,0.0114]
[1767084575221,0.52410014,87946.0,87936.0,0.0114]
[1767084577396,0.01137074,87945.0,87933.0,0.0114]
[1767084577598,0.01137048,87947.0,87940.0,0.04549176]
[1767084577599,0.51272953,87943.0,87940.0,0.04549176]
[1767084577763,0.01137048,87947.0,87940.0,0.04549176]
[1767084577963,0.01137061,87946.0,87940.0,0.04549176]
[1767084578367,0.01137048,87947.0,87940.0,0.04549176]
[1767084578765,0.01137087,87944.0,87933.0,0.0114]
[1767084578993,0.01137087,87944.0,87934.0,0.01819681]
[1767084579606,0.01137087,87944.0,87933.0,0.0114]
[1767084579909,0.51272953,87944.0,87933.0,0.0114]
[1767084580063,0.01137035,87948.0,87933.0,0.0114]
[1767084580263,0.52412953,87950.0,87935.0,0.01137203]
[1767084580515,0.52412953,87950.0,87937.0,0.13389]
[1767084580663,0.52412953,87950.0,87937.0,0.14526177]
[1767084580885,0.52412953,87950.0,87937.0,0.13389]
[1767084582055,0.0114,87950.0,87938.0,0.01137164]
[1767084582297,0.52412953,87950.0,87941.0,0.01137126]
[1767084582499,0.52412953,87950.0,87943.0,0.011371]
[1767084582703,0.0114,87950.0,87941.0,0.01137126]
[1767084582915,0.0114,87950.0,87939.0,0.01137151]
[1767084583146,0.51322325,87951.0,87938.0,0.01137164]
[1767084583299,0.51322325,87951.0,87937.0,0.13389]
[1767084584206,0.02455812,87950.0,87937.0,0.13389]
[1767084585381,0.51272953,87947.0,87934.0,0.02956897]
[1767084585582,0.51272953,87945.0,87934.0,0.02956897]
[1767084585980,0.51272953,87945.0,87934.0,0.01819681]
[1767084586221,0.01137009,87950.0,87935.0,0.0114]
[1767084586430,0.51272953,87944.0,87935.0,0.0114]
[1767084588159,0.51272953,87945.0,87935.0,0.0114]
[1767084589648,0.51272953,87945.0,87936.0,0.0114]
[1767084590233,0.00049372,87951.0,87936.0,0.0114]
[1767084590436,0.51272953,87946.0,87936.0,0.0114]
[1767084591101,0.01186368,87951.0,87936.0,0.0114]
[1767084591306,0.51272953,87946.0,87936.0,0.0114]
[1767084592643,0.01137048,87947.0,87936.0,0.0114]
[1767084592847,0.51272953,87946.0,87932.0,0.01137242]
[1767084593007,0.45580887,87941.0,87936.0,0.0114]
[1767084593750,0.39888821,87941.0,87936.0,0.0114]
[1767084593952,0.13887,87945.0,87936.0,0.0114]
[1767084594178,0.13887,87945.0,87935.0,0.0114]
[1767084594310,0.13887,87944.0,87940.0,0.06832106]
[1767084595355,0.51272953,87950.0,87944.0,0.000549]
[1767084595552,0.03524408,87949.0,87944.0,0.000549]
[1767084595793,0.01066756,87948.0,87938.0,0.01137164]
[1767084595979,0.00049372,87951.0,87938.0,0.01137164]
[1767084596185,0.00049372,87951.0,87942.0,0.01137113]
[1767084596186,0.01066755,87950.0,87942.0,0.01137113]
[1767084596357,7.2e-07,87951.0,87950.0,5.5e-05]
[1767084596682,0.0001565,87954.0,87950.0,5.5e-05]
[1767084596861,0.0001565,87954.0,87942.0,0.14529]
[1767084597060,0.0001565,87954.0,87949.0,0.01137022]
[1767084597287,0.02391446,87959.0,87954.0,0.134046]
[1767084597520,4.46e-06,87961.0,87959.0,0.000393]
[1767084597815,4.46e-06,87961.0,87960.0,0.10918]
[1767084598191,4.46e-06,87961.0,87960.0,0.16602402]
[1767084598399,4.46e-06,87961.0,87960.0,0.10918]
[1767084598979,4.46e-06,87961.0,87956.0,0.02276932]
[1767084598980,0.0004,87967.0,87965.0,0.10918]
[1767084599186,0.0002,87968.0,87962.0,0.01136854]
[1767084599187,0.0002,87968.0,87966.0,0.10918]
[1767084599385,0.0114,87978.0,87966.0,0.10918]
[1767084599589,0.0114,87978.0,87967.0,0.0004]
[1767084600062,0.0113666,87977.0,87967.0,0.0004]
[1767084600266,0.01152362,87973.0,87967.0,0.0004]
[1767084600694,0.01152362,87973.0,87963.0,0.0114]
[1767084600695,0.01136725,87972.0,87963.0,0.0114]
[1767084600917,0.01136725,87972.0,87944.0,0.04548]
[1767084600918,0.000143,87963.0,87944.0,0.04548]
[1767084601229,0.000143,87963.0,87943.0,0.011371]
[1767084601230,0.01136957,87954.0,87945.0,0.0114]
[1767084601432,0.05684928,87952.0,87944.0,0.0114]
[1767084601587,0.000549,87945.0,87944.0,0.0114]
[1767084601793,0.01137009,87950.0,87944.0,0.0114]
[1767084602033,0.0113697,87953.0,87944.0,0.0114]
[1767084602223,0.01136957,87954.0,87944.0,0.0114]
[1767084602619,0.01136932,87956.0,87944.0,0.0114]
[1767084602823,0.01136945,87955.0,87944.0,0.0114]
[1767084603283,0.01136932,87956.0,87944.0,0.0114]
[1767084603489,0.01136945,87955.0,87944.0,0.0114]
[1767084603695,0.01136983,87952.0,87945.0,0.0114]
[1767084603894,0.0113697,87953.0,87944.0,0.0114]
[1767084604094,0.01136945,87955.0,87944.0,0.0114]
[1767084604531,0.01136932,87956.0,87944.0,0.0114]
[1767084604707,0.01136945,87955.0,87944.0,0.0114]
[1767084605647,0.01136932,87956.0,87944.0,0.0114]
[1767084605951,0.01136945,87955.0,87944.0,0.0114]
[1767084606305,0.01136932,87956.0,87944.0,0.0114]
[1767084606649,0.01136919,87957.0,87944.0,0.0114]
[1767084607213,0.01136983,87952.0,87942.0,9.372e-05]
[1767084607421,0.01137009,87950.0,87942.0,0.01149372]
[1767084607627,0.01137009,87950.0,87943.0,0.0114]
[1767084607829,0.01137009,87950.0,87942.0,9.372e-05]
[1767084608022,0.01136945,87955.0,87950.0,0.000549]
[1767084608230,0.0113697,87953.0,87950.0,0.000549]
[1767084608464,0.0113697,87953.0,87943.0,0.0114]
[1767084608888,0.01136957,87954.0,87943.0,0.0114]
[1767084609099,0.0113697,87953.0,87943.0,0.0114]
[1767084609260,0.01136957,87954.0,87943.0,0.0114]
[1767084609659,0.00055,87943.0,87942.0,9.372e-05]
[1767084609831,0.05685565,87942.0,87919.0,0.0113741]
[1767084610032,0.01137164,87938.0,87921.0,0.01153034]
[1767084610246,0.01137151,87939.0,87922.0,0.01137371]
[1767084610595,0.02277138,87940.0,87923.0,0.01137358]
[1767084610742,0.0114,87947.0,87931.0,0.01152905]
[1767084610924,0.0114,87947.0,87940.0,0.000549]
[1767084611127,0.02277048,87947.0,87931.0,0.0001565]
[1767084611373,0.01137061,87946.0,87931.0,0.0001565]
[1767084611580,0.01137061,87946.0,87931.0,0.0001415]
[1767084611777,0.01137074,87945.0,87931.0,0.0001415]
[1767084611956,0.02277048,87947.0,87931.0,0.0001415]
[1767084613081,0.01137061,87946.0,87931.0,0.0001415]
[1767084613990,0.02277048,87947.0,87931.0,0.0001415]
[1767084614834,0.01137061,87946.0,87931.0,0.0001415]
[1767084615475,0.02277048,87947.0,87931.0,0.0001415]
[1767084615647,0.0114,87947.0,87931.0,0.0001415]
[1767084615809,0.01136893,87959.0,87937.0,0.01137177]
[1767084616014,0.01136893,87959.0,87931.0,0.0001415]
[1767084616015,0.0114,87958.0,87942.0,0.01137113]
[1767084616193,0.0114,87958.0,87943.0,0.011371]
[1767084616730,0.0114,87958.0,87944.0,0.01137087]
[1767084617905,0.0114,87958.0,87945.0,0.01137074]
[1767084618372,0.0114,87958.0,87946.0,0.01137061]
[1767084618575,0.0114,87958.0,87945.0,0.01137074]
[1767084618765,0.0114,87958.0,87946.0,0.01137061]
[1767084618937,0.0114,87958.0,87945.0,0.01137074]
[1767084619345,0.0114,87958.0,87944.0,0.01137087]
[1767084619570,0.0114,87958.0,87945.0,0.06822444]
[1767084619754,0.0114,87958.0,87945.0,0.07962444]
[1767084620089,0.0114,87958.0,87945.0,0.0114]
[1767084620283,0.0114,87958.0,87945.0,0.02277074]
[1767084620576,0.0114,87958.0,87945.0,0.0114]
[1767084620742,0.0114,87958.0,87945.0,0.02277074]
[1767084621339,0.02276906,87958.0,87945.0,0.0114]
[1767084621784,0.01136919,87957.0,87945.0,0.0114]
[1767084621979,0.01136957,87954.0,87945.0,0.0114]
[1767084622976,0.01136945,87955.0,87945.0,0.0114]
[1767084623800,0.01192074,87945.0,87936.0,0.0001415]
[1767084624000,0.01137087,87944.0,87932.0,0.0114]
[1767084624175,0.011371,87943.0,87932.0,0.0114]
[1767084624377,0.01137087,87944.0,87932.0,0.0114]
[1767084624620,0.011371,87943.0,87932.0,0.0114]
[1767084624818,0.01137087,87944.0,87932.0,0.0114]
[1767084626798,0.011371,87943.0,87932.0,0.0114]
[1767084626982,0.01137113,87942.0,87932.0,0.0114]
[1767084627397,0.01137126,87941.0,87932.0,0.0114]
[1767084627802,0.01137138,87940.0,87932.0,0.0114]
[1767084628195,0.01137126,87941.0,87932.0,0.0114]
[1767084628994,0.52387512,87942.0,87932.0,0.0114]
[1767084629192,0.01137126,87941.0,87926.0,0.0115352]
[1767084629397,0.01137113,87942.0,87929.0,0.0114]
[1767084629610,0.01137126,87941.0,87929.0,0.0114]
[1767084629922,0.01137113,87942.0,87929.0,0.0114]
[1767084630331,0.011371,87943.0,87929.0,0.0114]
[1767084630831,0.01137087,87944.0,87929.0,0.0114]
[1767084631029,0.01137074,87945.0,87929.0,0.02277281]
[1767084631249,0.01137087,87944.0,87929.0,0.0114]
[1767084634947,0.011371,87943.0,87929.0,0.0114]
[1767084635575,0.01097101,87943.0,87929.0,0.0114]
[1767084635787,0.14112,87942.0,87929.0,0.0114]
[1767084635975,0.15249113,87942.0,87929.0,0.0114]
[1767084636765,0.01137113,87942.0,87929.0,0.0114]
[1767084639783,0.01097101,87943.0,87929.0,0.0114]
[1767084640145,0.01137087,87944.0,87929.0,0.0114]
[1767084640995,0.01137061,87946.0,87929.0,0.02277281]
[1767084641146,0.01137087,87944.0,87929.0,0.02277281]
[1767084641360,0.01137061,87946.0,87930.0,0.01137268]
[1767084641626,0.01137074,87945.0,87929.0,0.02277281]
[1767084641913,0.01137061,87946.0,87930.0,0.02277268]
[1767084642279,0.01137087,87944.0,87930.0,0.0114]
[1767084642475,0.01137074,87945.0,87930.0,0.0114]
[1767084643090,0.01137087,87944.0,87930.0,0.0114]
[1767084643326,0.01137074,87945.0,87930.0,0.0114]
[1767084643488,0.01137087,87944.0,87930.0,0.0114]
[1767084644026,0.01137074,87945.0,87930.0,0.0114]
[1767084644193,0.01137074,87945.0,87930.0,0.02277268]
[1767084644397,0.01137061,87946.0,87930.0,0.0114]
[1767084644600,0.01137074,87945.0,87930.0,0.02277268]
[1767084645038,0.011371,87943.0,87930.0,0.0114]
[1767084645423,0.01137126,87941.0,87930.0,0.0114]
[1767084646138,0.01137113,87942.0,87930.0,0.0114]
[1767084646539,0.011371,87943.0,87930.0,0.0114]
[1767084647506,0.01137113,87942.0,87930.0,0.0114]
[1767084648209,0.011371,87943.0,87930.0,0.0114]
[1767084648408,0.011371,87943.0,87927.0,0.01137307]
[1767084648607,0.011371,87943.0,87929.0,0.0114]
[1767084649014,0.01137113,87942.0,87929.0,0.0114]
[1767084650190,0.01137113,87942.0,87926.0,0.0115352]
[1767084650191,0.51250399,87940.0,87926.0,0.000162]
[1767084650392,0.01137151,87939.0,87927.0,0.0114]
[1767084651900,0.01137164,87938.0,87927.0,0.0114]
[1767084652078,0.0113719,87936.0,87927.0,0.0114]
[1767084652277,0.01137203,87935.0,87926.0,0.011562]
[1767084652504,0.0113719,87936.0,87926.0,0.011562]
[1767084653525,0.01137177,87937.0,87926.0,0.011562]
[1767084653845,0.01137151,87939.0,87926.0,0.000162]
[1767084654551,0.01137164,87938.0,87926.0,0.000162]
[1767084654956,0.01137177,87937.0,87926.0,0.000162]
[1767084655306,0.0113719,87936.0,87926.0,0.000162]
[1767084655545,0.01137203,87935.0,87926.0,0.000162]
[1767084656143,0.0113719,87936.0,87926.0,0.000162]
[1767084656525,0.01137151,87939.0,87926.0,0.000162]
[1767084656724,0.01137164,87938.0,87926.0,0.000162]
[1767084656912,0.01137151,87939.0,87926.0,0.000162]
[1767084657116,0.01137164,87938.0,87926.0,0.000162]
[1767084659865,0.01137177,87937.0,87926.0,0.000162]
[1767084661380,0.01137164,87938.0,87926.0,0.000162]
[1767084661575,0.022771,87943.0,87926.0,0.000162]
[1767084661838,0.01137061,87946.0,87927.0,0.06823842]
[1767084661839,0.01137074,87945.0,87927.0,0.06823842]
[1767084662069,0.0114,87943.0,87929.0,0.01137281]
[1767084662818,0.0114,87943.0,87931.0,0.01137255]
[1767084663348,0.0114,87943.0,87932.0,0.01137242]
[1767084663784,0.0114,87943.0,87931.0,0.01137255]
[1767084663989,0.0114,87943.0,87928.0,0.01137294]
[1767084664187,0.0114,87943.0,87929.0,0.01137281]
[1767084664400,0.0114,87943.0,87928.0,0.01137294]
[1767084665262,0.0114,87943.0,87929.0,0.01137281]
[1767084665705,0.0114,87943.0,87930.0,0.01137268]
[1767084666473,0.0114,87943.0,87931.0,0.03411765]
[1767084666647,0.0114,87943.0,87930.0,0.01137268]
[1767084667127,0.0114,87943.0,87928.0,0.01137294]
[1767084667322,0.0114,87943.0,87929.0,0.01137281]
[1767084667839,0.0114,87943.0,87931.0,0.01137255]
[1767084668057,0.0114,87943.0,87930.0,0.01137268]
[1767084669060,0.0114,87943.0,87929.0,0.01137281]
[1767084669504,0.0114,87943.0,87930.0,0.01137268]
[1767084671530,0.0114,87943.0,87931.0,0.01137255]
[1767084671935,0.0114,87943.0,87930.0,0.01137268]
[1767084672149,0.0114,87943.0,87931.0,0.0001165]
[1767084674090,0.0114,87943.0,87931.0,0.01148905]
[1767084675216,0.0114,87943.0,87931.0,0.0001165]
[1767084676208,0.0114,87943.0,87931.0,0.01148905]
[1767084676526,0.51270278,87941.0,87931.0,0.01148905]
[1767084677188,0.0114,87943.0,87931.0,0.0001165]
[1767084677413,0.0114,87943.0,87941.0,0.000549]
[1767084677711,0.0114,87943.0,87931.0,0.01148905]
[1767084678413,0.0114,87943.0,87933.0,0.01137229]
[1767084678920,0.0114,87943.0,87932.0,0.01137242]
[1767084679095,0.0114,87943.0,87932.0,0.0001165]
[1767084679684,0.0114,87943.0,87932.0,0.01148892]
[1767084679881,0.0114,87943.0,87932.0,0.0001165]
[1767084680120,0.0114,87943.0,87932.0,0.01148892]
[1767084680325,0.0114,87943.0,87932.0,0.0001165]
[1767084680785,0.0114,87943.0,87932.0,0.01148892]
[1767084681320,0.0114,87943.0,87934.0,0.01137216]
[1767084681636,0.0114,87943.0,87933.0,0.01137229]
[1767084681783,0.0114,87943.0,87934.0,0.01137216]
[1767084682180,0.0114,87943.0,87935.0,0.01137203]
[1767084682625,0.0114,87943.0,87933.0,0.0001165]
[1767084682828,0.0114,87943.0,87933.0,0.01148879]
[1767084683197,0.0114,87943.0,87934.0,0.01137216]
[1767084683489,0.0114,87943.0,87933.0,0.01148879]
[1767084683768,0.0114,87943.0,87933.0,0.0001165]
[1767084689793,0.0114,87943.0,87933.0,0.01148879]
[1767084691834,0.0114,87943.0,87934.0,0.01137216]
[1767084692040,0.0114,87943.0,87933.0,0.0001165]
[1767084692308,0.0114,87943.0,87933.0,0.01148879]
[1767084692707,0.0114,87943.0,87933.0,0.0001165]
[1767084695230,0.0114,87943.0,87935.0,0.01137203]
[1767084695453,0.0114,87943.0,87935.0,0.01078197]
[1767084696060,0.01136996,87951.0,87933.0,0.01148879]
[1767084696061,0.01136932,87956.0,87943.0,0.000549]
[1767084696448,0.0114,87953.0,87943.0,0.000549]
[1767084696663,0.01066971,87952.0,87937.0,0.01137177]
[1767084696865,0.0114,87953.0,87938.0,0.01137164]
[1767084697069,0.01066887,87952.0,87940.0,0.01137138]
[1767084697271,0.0114,87953.0,87940.0,0.01137138]
[1767084697443,0.01066838,87952.0,87940.0,0.01137138]
[1767084697606,0.0114,87953.0,87941.0,0.01137126]
[1767084697836,0.0114,87953.0,87940.0,0.52407416]
[1767084697837,0.01066838,87952.0,87940.0,0.52407416]
[1767084698058,0.0114,87953.0,87941.0,0.01137126]
[1767084698295,0.01066838,87952.0,87941.0,0.01137126]
[1767084698425,0.0114,87953.0,87940.0,0.52407416]
[1767084698622,0.01066808,87952.0,87940.0,0.52407416]
[1767084698845,0.0114,87953.0,87940.0,0.52407416]
[1767084699170,0.01066808,87952.0,87940.0,0.52407416]
[1767084699371,0.0114,87953.0,87940.0,0.52407416]
[1767084699535,0.01066782,87952.0,87941.0,0.01137126]
[1767084699741,0.0114,87953.0,87941.0,0.01137126]
[1767084699999,0.0114,87958.0,87941.0,0.01137126]
[1767084700125,0.01136945,87955.0,87940.0,0.52407416]
[1767084700322,0.01066769,87954.0,87940.0,0.52407416]
[1767084700547,0.01066769,87954.0,87940.0,0.51270278]
[1767084700829,0.01066769,87954.0,87940.0,0.52407416]
[1767084701030,0.01066769,87954.0,87940.0,0.51270278]
[1767084701429,0.01066769,87954.0,87940.0,0.52407416]
[1767084701625,0.01136945,87955.0,87940.0,0.52407416]
[1767084701845,0.01066676,87954.0,87940.0,0.52407416]
[1767084702073,0.01136945,87955.0,87940.0,0.52407416]
[1767084702288,0.01066671,87954.0,87940.0,0.52407416]
[1767084702499,0.01136932,87956.0,87941.0,0.01137126]
[1767084702728,0.01066629,87955.0,87941.0,0.01137126]
[1767084702919,0.01066629,87954.0,87941.0,0.01137126]
[1767084703120,0.01136932,87956.0,87941.0,0.01137126]
[1767084703320,0.01066628,87955.0,87941.0,0.01137126]
[1767084703490,0.01066628,87954.0,87941.0,0.01137126]
[1767084703693,0.01136932,87956.0,87941.0,0.01137126]
[1767084703922,0.01066593,87955.0,87941.0,0.01137126]
[1767084704126,0.01066593,87954.0,87940.0,0.51270278]
[1767084704340,0.01136957,87954.0,87940.0,0.51270278]
[1767084704545,0.06821824,87953.0,87936.0,0.0227719]
[1767084704705,0.01136983,87952.0,87937.0,0.01137177]
[1767084705018,0.0113697,87953.0,87938.0,0.01137164]
[1767084705389,0.01136983,87952.0,87937.0,0.01137177]
[1767084705600,0.0113697,87953.0,87937.0,0.01137177]
[1767084706031,0.0113697,87953.0,87938.0,0.01137164]
[1767084706455,0.01136957,87954.0,87939.0,0.01137151]
[1767084707077,0.51270278,87950.0,87939.0,0.01137151]
[1767084707340,0.51270278,87950.0,87937.0,0.01137177]
[1767084707549,0.51270278,87950.0,87936.0,0.0227719]
[1767084707957,0.01136983,87952.0,87936.0,0.0227719]
[1767084708115,0.51270278,87950.0,87936.0,0.0227719]
[1767084708313,0.51270278,87950.0,87934.0,0.06823235]
[1767084708547,0.51270278,87950.0,87935.0,0.0114]
[1767084708548,0.05685306,87946.0,87935.0,0.0114]
[1767084708746,0.01137048,87947.0,87936.0,0.0114]
[1767084709913,0.01137061,87946.0,87936.0,0.0114]
[1767084710257,0.01137048,87947.0,87936.0,0.0114]
[1767084712945,0.01137035,87948.0,87936.0,0.0114]
[1767084714657,0.01137022,87949.0,87936.0,0.0114]
[1767084716223,0.01137048,87947.0,87936.0,0.0114]
[1767084716431,0.01137035,87948.0,87933.0,0.01148879]
[1767084716637,0.01137035,87948.0,87934.0,0.0114]
[1767084717021,0.01137048,87947.0,87934.0,0.0114]
[1767084717223,0.01137035,87948.0,87934.0,0.0114]
[1767084717522,0.01137035,87948.0,87934.0,0.00974865]
[1767084719593,0.01137048,87947.0,87934.0,0.00974865]
[1767084720243,0.01137061,87946.0,87934.0,0.00974865]
[1767084720593,0.01137048,87947.0,87934.0,0.00974865]
[1767084720775,0.01137061,87946.0,87934.0,0.00974865]
[1767084721199,0.01137048,87947.0,87934.0,0.00974865]
[1767084721400,0.01137061,87946.0,87934.0,0.00974865]
[1767084721559,0.01137022,87949.0,87934.0,0.00974865]
[1767084721775,0.01137048,87947.0,87934.0,0.00974865]
[1767084722714,0.01137061,87946.0,87934.0,0.00974865]
[1767084722951,0.01137048,87947.0,87934.0,0.00974865]
[1767084723282,0.01137035,87948.0,87934.0,0.00974865]
[1767084723485,0.01137048,87947.0,87934.0,0.00974865]
[1767084724479,0.01137061,87946.0,87934.0,0.00974865]
[1767084724626,0.01137048,87947.0,87934.0,0.00974865]
[1767084725033,0.01137061,87946.0,87934.0,0.00974865]
[1767084725286,0.01137113,87942.0,87934.0,0.00974865]
[1767084725643,0.05685371,87945.0,87934.0,0.00974865]
[1767084725644,0.011371,87943.0,87934.0,0.00974865]
[1767084726166,0.01137151,87939.0,87933.0,0.0001165]
[1767084726333,0.00055,87934.0,87933.0,0.0001165]
[1767084726792,0.01137138,87940.0,87933.0,0.0001165]
[1767084727159,0.01137113,87942.0,87933.0,0.0001165]
[1767084727484,0.01137138,87940.0,87933.0,0.0001165]
[1767084727960,0.01137151,87939.0,87933.0,0.0001165]
[1767084728849,0.01137138,87940.0,87933.0,0.0001165]
[1767084729254,0.01137113,87942.0,87933.0,0.0001165]
[1767084731627,0.01137126,87941.0,87933.0,0.0001165]
[1767084731983,0.01137113,87942.0,87933.0,0.0001165]
[1767084732464,0.01137126,87941.0,87933.0,0.0001165]
[1767084733989,0.52407378,87943.0,87933.0,0.0001165]
[1767084734491,0.01137126,87941.0,87933.0,0.0001165]
[1767084734627,0.01137113,87942.0,87933.0,0.0001165]
[1767084735236,0.01137126,87941.0,87933.0,0.0001165]
[1767084735686,0.52407378,87943.0,87933.0,0.0001165]
[1767084735989,0.52377145,87943.0,87933.0,0.0001165]
[1767084736166,0.01137113,87942.0,87933.0,0.0001165]
[1767084736549,0.52377145,87943.0,87933.0,0.0001165]
[1767084736750,0.51270278,87943.0,87933.0,0.0001165]
[1767084737919,0.56955801,87943.0,87933.0,0.0001165]
[1767084738103,0.52407378,87943.0,87933.0,0.0001165]
[1767084738299,0.01137113,87942.0,87933.0,0.0001165]
[1767084738500,0.01137126,87941.0,87933.0,0.0001165]
[1767084738707,0.011371,87943.0,87933.0,0.0001165]
[1767084739487,0.01137113,87942.0,87933.0,0.0001165]
[1767084739803,0.01137126,87941.0,87933.0,0.0001165]
[1767084740264,0.01137113,87942.0,87933.0,0.0001165]
[1767084740763,0.01137126,87941.0,87933.0,0.0001165]